bitfinex/quotes_SOLUSD_20240622
["timestamp","ask_amount","ask_price","bid_price","bid_amount"]
[1719043536874,7.4176,134.82,134.78,6.47]
[1719043537072,7.4176,134.82,134.77,6.47]
[1719043537480,7.4176,134.82,134.77,13.89]
[1719043539007,13.8876,134.82,134.77,13.89]
[1719043539210,6.47,134.82,134.77,13.89]
[1719043539490,7.4169,134.83,134.78,7.4194]
[1719043539786,6.47,134.83,134.78,7.4194]
[1719043540180,6.47,134.83,134.78,13.8894]
[1719043541693,7.4163,134.84,134.79,7.4188]
[1719043541885,6.47,134.83,134.79,7.4188]
[1719043542087,13.8863,134.84,134.79,7.4188]
[1719043543799,7.4163,134.84,134.79,7.4188]
[1719043543996,13.8863,134.84,134.79,7.4188]
[1719043544493,13.8863,134.84,134.78,13.8892]
[1719043544695,7.4161,134.85,134.79,7.4186]
[1719043544896,6.47,134.83,134.79,7.4186]
[1719043545492,13.8872,134.83,134.78,6.47]
[1719043545998,13.8864,134.84,134.79,6.47]
[1719043546295,7.4167,134.83,134.78,13.8891]
[1719043546500,13.887,134.83,134.78,13.8894]
[1719043547685,13.887,134.83,134.78,7.4194]
[1719043547885,13.887,134.83,134.78,13.8894]
[1719043548293,7.417,134.83,134.78,13.8894]
[1719043548694,13.887,134.83,134.78,13.8894]
[1719043548896,6.47,134.83,134.78,13.8894]
[1719043549286,7.4164,134.84,134.79,7.4187]
[1719043549504,13.8864,134.84,134.79,13.8887]
[1719043549694,7.4164,134.84,134.79,7.4187]
[1719043549901,7.4164,134.84,134.8,6.47]
[1719043550086,13.8864,134.84,134.79,13.8887]
[1719043550805,13.8864,134.84,134.79,7.4187]
[1719043551013,13.8864,134.84,134.79,13.8887]
[1719043551398,7.4164,134.84,134.79,13.8887]
[1719043551699,13.8858,134.85,134.79,13.8887]
[1719043553115,7.4162,134.84,134.79,13.8887]
[1719043554306,7.4169,134.83,134.79,6.47]
[1719043554614,13.8864,134.84,134.79,6.47]
[1719043555018,7.4171,134.83,134.78,7.4192]
[1719043555188,13.8877,134.82,134.77,13.8898]
[1719043555911,7.417,134.83,134.77,13.8898]
[1719043556216,6.47,134.82,134.77,13.8898]
[1719043556921,13.887,134.83,134.78,7.4193]
[1719043558612,6.47,134.83,134.79,7.4188]
[1719043559417,6.47,134.83,134.8,7.4183]
[1719043559996,6.47,134.83,134.79,7.4186]
[1719043560411,6.47,134.83,134.75,22.8841]
[1719043560597,6.47,134.82,134.78,7.4194]
[1719043561303,7.4171,134.83,134.78,7.4194]
[1719043561518,6.47,134.82,134.79,7.4188]
[1719043561716,6.47,134.82,134.78,7.4192]
[1719043563722,13.8874,134.82,134.77,7.4197]
[1719043563923,6.47,134.82,134.78,7.4194]
[1719043564601,13.8869,134.83,134.78,7.4194]
[1719043565422,7.4162,134.84,134.79,7.4186]
[1719043565616,13.8862,134.84,134.79,13.8886]
[1719043566114,7.4162,134.84,134.79,13.8886]
[1719043566314,21.9737,134.83,134.75,7.437]
[1719043566516,6.47,134.8,134.75,7.437]
[1719043566815,13.8887,134.8,134.75,7.437]
[1719043567415,13.8887,134.8,134.75,14.8581]
[1719043573645,7.4187,134.8,134.75,14.8581]
[1719043573812,7.4182,134.81,134.75,21.3277]
[1719043574113,13.8882,134.81,134.75,21.3277]
[1719043575427,7.4185,134.8,134.75,21.3277]
[1719043576529,13.8885,134.8,134.75,21.3277]
[1719043576830,13.8885,134.8,134.75,13.907]
[1719043577137,7.4185,134.8,134.75,13.907]
[1719043577333,13.8885,134.8,134.75,13.907]
[1719043581233,7.4185,134.8,134.75,13.907]
[1719043581527,7.4185,134.8,134.76,6.47]
[1719043582036,28.4437,134.83,134.77,6.47]
[1719043582227,7.4174,134.82,134.77,13.8897]
[1719043582530,29.3908,134.83,134.78,7.419]
[1719043582733,7.4173,134.82,134.77,13.8898]
[1719043582933,28.4437,134.83,134.75,13.907]
[1719043582934,6.47,134.81,134.75,13.907]
[1719043583318,7.4186,134.8,134.75,21.3279]
[1719043583644,7.4189,134.79,134.75,13.907]
[1719043583823,7.4186,134.8,134.75,13.907]
[1719043584131,13.8886,134.8,134.75,21.328]
[1719043584938,7.4186,134.8,134.75,21.328]
[1719043585522,13.888,134.81,134.76,7.4205]
[1719043585726,7.4181,134.81,134.76,7.4202]
[1719043585919,7.4181,134.81,134.76,13.8902]
[1719043586320,13.8881,134.81,134.76,13.8902]
[1719043588416,7.4184,134.8,134.75,14.8579]
[1719043588732,7.419,134.79,134.75,7.437]
[1719043588944,13.889,134.79,134.75,7.437]
[1719043589329,6.47,134.79,134.75,14.8581]
[1719043589628,13.8886,134.8,134.75,14.8581]
[1719043591236,7.4186,134.8,134.75,14.8581]
[1719043591446,13.8886,134.8,134.75,14.8581]
[1719043591619,13.8884,134.8,134.75,21.3276]
[1719043591822,6.47,134.8,134.76,7.4205]
[1719043592440,6.47,134.8,134.75,14.8579]
[1719043592646,6.47,134.8,134.75,21.3279]
[1719043593144,13.8884,134.8,134.75,21.3279]
[1719043593327,7.4184,134.8,134.75,21.3279]
[1719043593528,7.4184,134.8,134.75,14.8579]
[1719043593732,7.4184,134.8,134.75,21.3279]
[1719043594432,13.888,134.81,134.76,7.4205]
[1719043595122,7.418,134.81,134.76,7.4205]
[1719043595327,13.888,134.81,134.76,7.4205]
[1719043595941,7.4174,134.82,134.77,7.4199]
[1719043596144,7.4174,134.82,134.77,6.47]
[1719043596351,7.4174,134.82,134.77,13.8899]
[1719043596828,7.4178,134.81,134.76,7.4203]
[1719043597029,7.4178,134.81,134.76,13.8903]
[1719043599352,7.4178,134.81,134.76,7.4203]
[1719043599648,13.8875,134.82,134.76,13.8903]
[1719043600148,13.8875,134.82,134.77,7.4198]
[1719043601338,7.4175,134.82,134.77,7.4198]
[1719043601537,13.8875,134.82,134.77,7.4198]
[1719043602432,13.8875,134.82,134.76,13.8903]
[1719043603253,13.8875,134.82,134.77,7.42]
[1719043603429,7.4175,134.82,134.77,7.42]
[1719043603630,13.8875,134.82,134.77,7.42]
[1719043604137,13.8875,134.82,134.76,13.8902]
[1719043604692,7.4178,134.81,134.76,13.8902]
[1719043605328,7.4175,134.82,134.77,7.42]
[1719043605527,13.8875,134.82,134.77,7.42]
[1719043606275,6.47,134.81,134.74,7.437]
[1719043606545,6.47,134.79,134.75,14.8578]
[1719043606751,7.4184,134.8,134.75,14.8578]
[1719043606940,7.418,134.81,134.76,7.4205]
[1719043607541,7.418,134.81,134.75,14.8578]
[1719043607949,7.4184,134.8,134.75,14.8578]
[1719043608132,5.88999297,134.85,134.75,14.8578]
[1719043608133,15.1471,134.86,134.77,6.47]
[1719043608339,6.47,134.84,134.81,7.4175]
[1719043608552,6.47,134.83,134.8,7.4181]
[1719043610861,6.47,134.83,134.81,7.4175]
[1719043611470,22.5625,134.86,134.81,7.4175]
[1719043611650,6.47,134.84,134.81,7.4175]
[1719043613456,22.5625,134.86,134.81,7.4175]
[1719043613667,6.47,134.84,134.81,7.4175]
[1719043614361,6.47,134.83,134.8,7.4181]
[1719043615570,6.47,134.83,134.79,7.4187]
[1719043616071,7.4157,134.85,134.8,7.4182]
[1719043616363,6.47,134.81,134.76,16.2165]
[1719043616569,6.47,134.81,134.75,7.437]
[1719043616570,6.47,134.79,134.75,7.437]
[1719043617168,7.4182,134.81,134.75,7.437]
[1719043617362,6.47,134.79,134.76,7.4202]
[1719043617564,7.4174,134.82,134.76,7.4202]
[1719043617775,6.47,134.79,134.76,7.4202]
[1719043618367,33.2974,134.82,134.75,14.8579]
[1719043618368,6.47,134.78,134.75,14.8579]
[1719043620152,6.47,134.78,134.75,7.437]
[1719043620351,7.4184,134.8,134.75,7.437]
[1719043620352,7.4184,134.8,134.75,14.858]
[1719043620586,6.47,134.78,134.75,14.858]
[1719043621184,6.47,134.78,134.75,7.437]
[1719043621378,6.47,134.76,134.74,7.437]
[1719043621970,6.47,134.75,134.74,7.437]
[1719043622762,13.8911,134.75,134.74,7.437]
[1719043623278,6.47,134.75,134.68,7.437]
[1719043623466,6.47,134.73,134.71,7.437]
[1719043624858,7.4207,134.76,134.72,7.437]
[1719043625059,6.47,134.73,134.72,7.437]
[1719043625983,6.47,134.73,134.68,13.907]
[1719043626552,6.47,134.72,134.7,7.437]
[1719043626785,6.47,134.71,134.7,7.437]
[1719043627360,6.47,134.72,134.7,7.437]
[1719043627568,6.47,134.72,134.69,7.437]
[1719043628462,7.4212,134.75,134.69,7.437]
[1719043628661,6.47,134.74,134.71,7.437]
[1719043629094,16.4961,134.76,134.71,7.437]
[1719043629271,7.4214,134.75,134.71,7.437]
[1719043629601,6.47,134.72,134.71,7.437]
[1719043630695,6.47,134.72,134.68,7.4248]
[1719043630874,6.47,134.71,134.68,7.4248]
[1719043631400,6.47,134.69,134.64,7.4268]
[1719043631559,6.47,134.69,134.63,7.4276]
[1719043631560,6.47,134.66,134.63,7.4276]
[1719043631764,7.4249,134.69,134.63,7.4276]
[1719043631983,6.47,134.66,134.63,7.4276]
[1719043632297,6.47,134.66,134.64,7.4271]
[1719043632479,6.47,134.67,134.64,7.4271]
[1719043632668,6.47,134.66,134.62,8.3107329]
[1719043632859,7.4257,134.67,134.62,0.8828329]
[1719043633189,7.426,134.67,134.62,0.8828329]
[1719043633413,6.47,134.63,134.62,0.8828329]
[1719043633680,7.4267,134.65,134.62,0.8828329]
[1719043633884,6.47,134.63,134.62,0.8828329]
[1719043634092,6.47,134.65,134.63,7.4273]
[1719043634392,6.47,134.66,134.62,0.8828329]
[1719043634567,7.4248,134.69,134.63,7.4273]
[1719043634764,16.285,134.72,134.62,0.8828329]
[1719043634995,7.4213,134.75,134.69,7.4242]
[1719043635295,22.7153,134.76,134.69,7.4241]
[1719043635296,6.47,134.72,134.69,7.4241]
[1719043635595,6.47,134.71,134.68,7.4248]
[1719043636291,6.47,134.71,134.67,7.4255]
[1719043636863,6.47,134.71,134.66,6.47]
[1719043637366,7.4221,134.74,134.69,7.4243]
[1719043637367,6.47,134.72,134.69,7.4243]
[1719043637678,6.47,134.74,134.69,6.47]
[1719043637873,6.47,134.74,134.71,7.4232]
[1719043638294,7.4199,134.78,134.72,7.4226]
[1719043638498,6.47,134.76,134.73,7.422]
[1719043638871,6.47,134.76,134.72,7.4226]
[1719043639562,7.4197,134.78,134.72,7.4226]
[1719043639763,6.47,134.77,134.72,7.4226]
[1719043640572,13.8901,134.77,134.71,13.8931]
[1719043640771,13.8907,134.76,134.71,7.4231]
[1719043641170,6.47,134.76,134.7,13.0674]
[1719043641367,7.4209,134.76,134.71,7.4232]
[1719043641568,7.4223,134.73,134.69,15.1843]
[1719043641890,7.4219,134.74,134.69,15.1843]
[1719043642068,7.4219,134.74,134.69,22.6085]
[1719043642274,7.4213,134.75,134.69,22.6085]
[1719043642783,7.4218,134.74,134.69,22.6085]
[1719043642990,7.4224,134.73,134.69,15.1843]
[1719043643567,7.4224,134.73,134.67,7.4254]
[1719043643889,7.4223,134.73,134.67,7.4253]
[1719043644695,7.4223,134.73,134.68,7.4249]
[1719043646197,7.4223,134.73,134.67,7.4253]
[1719043647698,7.4223,134.73,134.68,7.4249]
[1719043648496,7.4231,134.72,134.66,21.7817]
[1719043649199,7.4224,134.73,134.67,7.4252]
[1719043649581,7.4229,134.72,134.67,7.4252]
[1719043649791,7.4229,134.72,134.66,29.2076]
[1719043650095,7.4229,134.72,134.67,7.4255]
[1719043651993,18.5529,134.75,134.66,21.7817]
[1719043652201,7.422,134.74,134.69,7.4244]
[1719043652894,7.4212,134.75,134.7,7.4238]
[1719043653599,18.5527,134.76,134.66,21.7817]
[1719043653788,19.48,134.77,134.66,29.2075]
[1719043654095,7.4251,134.68,134.63,7.4276]
[1719043655710,7.4246,134.69,134.64,7.4271]
[1719043656500,7.4253,134.68,134.63,7.4276]
[1719043656889,7.4245,134.69,134.63,7.4272]
[1719043657287,7.4245,134.69,134.64,7.4272]
[1719043658105,7.4255,134.68,134.62,0.8828329]
[1719043658297,7.4257,134.67,134.62,8.3106329]
[1719043659105,7.4263,134.66,134.62,0.8828329]
[1719043659289,38.0424,134.69,134.62,0.8828329]
[1719043659496,7.4264,134.66,134.62,0.8828329]
[1719043659801,38.0424,134.69,134.62,0.8828329]
[1719043659802,7.4252,134.68,134.62,0.8828329]
[1719043659982,19.48,134.69,134.62,0.8828329]
[1719043659983,22.0145,134.67,134.62,0.8828329]
[1719043660189,19.48,134.66,134.62,0.8828329]
[1719043660589,7.4277,134.63,134.62,0.8828329]
[1719043660789,38.0462,134.66,134.62,0.8828329]
[1719043661087,19.48,134.66,134.62,0.8828329]
[1719043661289,7.4262,134.66,134.62,0.8828329]
[1719043662404,23.1849,134.67,134.62,0.8828329]
[1719043662598,19.48,134.68,134.62,8.3109329]
[1719043663891,7.4258,134.67,134.62,8.3109329]
[1719043664906,7.4263,134.66,134.62,0.8828329]
[1719043666009,7.4264,134.66,134.62,0.8828329]
[1719043666494,7.4257,134.67,134.62,8.3110329]
[1719043666701,19.48,134.69,134.62,0.8828329]
[1719043667091,7.4251,134.68,134.63,7.4273]
[1719043667291,26.9046,134.69,134.64,7.4272]
[1719043667709,26.9046,134.69,134.63,7.4275]
[1719043667909,19.48,134.69,134.62,8.3109329]
[1719043668283,7.4252,134.68,134.63,7.4275]
[1719043669912,19.48,134.7,134.64,7.427]
[1719043670101,7.4246,134.69,134.64,7.427]
[1719043671001,26.904,134.7,134.65,7.4265]
[1719043672420,15.7725,134.68,134.62,0.8828329]
[1719043672599,7.4277,134.63,134.62,0.8828329]
[1719043672790,6.162,134.65,134.53,22.2587]
[1719043672791,7.429,134.61,134.56,7.4314]
[1719043673006,19.48,134.64,134.55,7.4319]
[1719043673007,38.0485,134.64,134.55,7.4319]
[1719043673416,7.4298,134.6,134.54,7.4325]
[1719043673621,7.4298,134.6,134.55,7.4319]
[1719043673991,7.4298,134.6,134.53,22.2587]
[1719043673992,7.4297,134.6,134.54,7.4324]
[1719043674404,7.4297,134.6,134.55,7.4321]
[1719043675212,7.4297,134.6,134.53,22.2587]
[1719043675213,7.4304,134.59,134.53,22.2587]
[1719043675615,7.4296,134.6,134.54,7.4323]
[1719043675830,7.429,134.61,134.55,7.4321]
[1719043675999,38.048,134.64,134.53,22.2587]
[1719043676000,7.4294,134.6,134.53,22.2587]
[1719043676201,18.5707,134.63,134.53,22.2587]
[1719043676401,7.4303,134.59,134.53,29.6915]
[1719043677007,7.4303,134.59,134.54,7.4327]
[1719043678200,7.4296,134.6,134.55,7.432]
[1719043678621,7.4296,134.6,134.55,7.4321]
[1719043678622,7.4294,134.6,134.55,7.4321]
[1719043679031,26.9089,134.61,134.56,7.4316]
[1719043679323,26.9092,134.61,134.55,7.4319]
[1719043679831,19.48,134.61,134.56,7.4313]
[1719043680123,26.9089,134.61,134.56,7.4313]
[1719043680310,7.4296,134.6,134.55,7.4319]
[1719043680526,19.48,134.61,134.56,7.4315]
[1719043680942,19.48,134.61,134.53,40.8416]
[1719043681143,26.9091,134.61,134.56,7.4312]
[1719043681427,26.9089,134.61,134.56,7.4313]
[1719043681932,7.4301,134.59,134.54,7.4324]
[1719043682631,19.48,134.61,134.51,18.5857]
[1719043682927,7.4302,134.59,134.54,7.4324]
[1719043683123,7.4296,134.6,134.55,7.4321]
[1719043683311,19.48,134.61,134.49,23.1415329]
[1719043683517,7.4281,134.63,134.58,7.4301]
[1719043683705,7.4283,134.62,134.57,7.4308]
[1719043684104,35.2525,134.64,134.54,18.5807]
[1719043684304,20.0,134.63,134.54,18.5807]
[1719043684528,27.428,134.63,134.57,7.4305]
[1719043684810,27.428,134.63,134.58,7.4304]
[1719043685028,20.0,134.63,134.58,7.4304]
[1719043685207,20.0,134.63,134.59,7.4299]
[1719043685543,35.2525,134.64,134.6,7.4293]
[1719043685842,7.4262,134.66,134.61,7.4288]
[1719043686141,33.0674,134.68,134.62,7.4283]
[1719043686339,7.4255,134.67,134.62,7.4283]
[1719043687035,42.1999,134.71,134.65,7.4263]
[1719043687205,19.48,134.71,134.65,7.4263]
[1719043687405,7.4226,134.73,134.67,7.4254]
[1719043687917,7.4228,134.72,134.66,7.4258]
[1719043688311,18.5545,134.74,134.62,22.3472]
[1719043688509,7.4244,134.69,134.64,7.427]
[1719043689219,26.917,134.72,134.63,7.4277]
[1719043689416,26.917,134.72,134.58,37.1513]
[1719043689417,19.48,134.69,134.58,22.3472]
[1719043690742,7.4253,134.68,134.62,7.4277]
[1719043691532,7.4256,134.67,134.62,7.4281]
[1719043692229,7.4267,134.65,134.6,7.4294]
[1719043692426,7.4267,134.65,134.59,7.4298]
[1719043693010,7.4267,134.65,134.6,7.4293]
[1719043697120,6.5819,134.68,134.54,22.4243]
[1719043697121,19.48,134.62,134.54,22.4243]
[1719043697336,18.5709,134.62,134.54,22.4243]
[1719043697538,16.5314,134.64,134.54,29.8565]
[1719043697539,7.4289,134.61,134.54,29.8565]
[1719043697724,7.4289,134.61,134.55,7.4321]
[1719043697923,7.4289,134.61,134.54,7.4321]
[1719043698128,7.4295,134.6,134.53,7.4332]
[1719043698322,7.4289,134.61,134.54,7.4327]
[1719043698640,6.5819,134.62,134.52,18.5838]
[1719043698847,16.5314,134.64,134.54,18.5812]
[1719043699152,7.4278,134.63,134.54,18.5812]
[1719043699341,7.4278,134.63,134.56,7.4311]
[1719043700049,7.4283,134.62,134.56,7.4311]
[1719043700640,7.4283,134.62,134.55,7.4321]
[1719043701031,7.4283,134.62,134.56,7.4315]
[1719043701618,7.4283,134.62,134.55,7.432]
[1719043701820,7.4289,134.61,134.55,7.432]
[1719043702034,7.4289,134.61,134.54,7.4326]
[1719043702229,7.4295,134.6,134.54,7.4326]
[1719043702430,7.4295,134.6,134.53,7.4331]
[1719043702629,7.429,134.61,134.54,7.4325]
[1719043702843,7.429,134.61,134.51,18.5851]
[1719043703149,26.9084,134.62,134.56,7.4315]
[1719043704656,19.48,134.62,134.56,7.4315]
[1719043705328,26.9085,134.62,134.56,7.4315]
[1719043708152,7.4289,134.61,134.55,7.432]
[1719043709655,7.4294,134.6,134.54,7.4326]
[1719043711556,7.429,134.61,134.55,7.432]
[1719043711854,26.9084,134.62,134.56,7.4315]
[1719043712651,7.4289,134.61,134.55,7.4319]
[1719043714948,7.4296,134.6,134.54,7.4325]
[1719043716253,7.4301,134.59,134.54,7.4325]
[1719043716753,7.4301,134.59,134.53,7.433]
[1719043716963,15.9979,134.6,134.49,0.8828329]
[1719043717144,19.48,134.55,134.49,0.8828329]
[1719043717448,26.9107,134.58,134.52,7.4336]
[1719043717654,7.4305,134.58,134.52,7.4336]
[1719043717854,49.5073,134.59,134.52,7.4336]
[1719043718458,6.0794,134.62,134.57,7.4305]
[1719043718967,15.9979,134.63,134.59,7.4298]
[1719043719173,6.0794,134.66,134.6,7.429]
[1719043719331,7.4271,134.65,134.58,7.4303]
[1719043719533,6.0794,134.66,134.58,7.4303]
[1719043719971,6.0794,134.66,134.53,16.4299]
[1719043720141,7.4311,134.57,134.53,16.4299]
[1719043720457,35.4779,134.61,134.53,16.4299]
[1719043720458,15.9979,134.61,134.53,16.4299]
[1719043720644,15.9979,134.65,134.55,18.5795]
[1719043720838,15.9979,134.65,134.59,18.5743]
[1719043721028,15.9979,134.65,134.53,35.9099]
[1719043721029,15.9979,134.65,134.61,7.4288]
[1719043721229,15.9979,134.65,134.56,18.5783]
[1719043721549,6.0794,134.66,134.62,7.4283]
[1719043721750,6.0794,134.66,134.61,7.4287]
[1719043722446,23.4229,134.68,134.61,7.4287]
[1719043722632,23.4229,134.68,134.62,7.4282]
[1719043722840,15.9979,134.68,134.58,24.8239]
[1719043723159,15.9979,134.68,134.62,7.4283]
[1719043723654,23.423,134.68,134.61,7.4287]
[1719043725370,15.9979,134.68,134.59,16.4299]
[1719043725660,23.423,134.68,134.61,7.4287]
[1719043725868,7.4255,134.67,134.6,7.4294]
[1719043726666,19.48,134.67,134.56,33.5851]
[1719043727154,6.2388,134.66,134.57,7.431]
[1719043727551,7.4279,134.63,134.57,7.431]
[1719043727768,22.4459,134.62,134.5,39.7922]
[1719043727940,22.4459,134.62,134.54,7.4322]
[1719043728135,22.4459,134.62,134.5,39.7922]
[1719043728343,22.4459,134.62,134.54,7.4326]
[1719043728649,22.4459,134.62,134.52,18.5837]
[1719043728866,22.4459,134.62,134.58,7.4301]
[1719043729051,16.2071,134.62,134.58,7.4301]
[1719043729247,16.2071,134.62,134.57,7.4309]
[1719043729459,16.2071,134.62,134.58,7.4305]
[1719043730049,16.2071,134.62,134.5,40.6854]
[1719043730050,16.2071,134.62,134.51,18.5847]
[1719043730258,23.6357,134.62,134.56,7.4315]
[1719043732057,16.2071,134.62,134.52,0.17]
[1719043732363,7.4292,134.61,134.55,7.4321]
[1719043733069,7.4295,134.6,134.55,7.4321]
[1719043733369,6.1527,134.59,134.54,7.4324]
[1719043733551,6.1527,134.59,134.51,18.5856]
[1719043734757,6.1527,134.59,134.55,7.432]
[1719043735067,16.2071,134.62,134.53,18.583]
[1719043735246,16.2071,134.62,134.58,7.4301]
[1719043736172,16.2071,134.62,134.55,18.5803]
[1719043736461,7.4291,134.61,134.56,7.4313]
[1719043737061,23.6356,134.62,134.56,7.4313]
[1719043737777,23.6356,134.62,134.57,7.431]
[1719043738273,16.2071,134.62,134.58,7.4303]
[1719043738640,13.5806,134.63,134.52,0.17]
[1719043738641,6.1527,134.63,134.59,7.4298]
[1719043739768,6.1527,134.63,134.58,7.4304]
[1719043740159,13.5805,134.63,134.58,7.4304]
[1719043740570,6.1527,134.63,134.59,7.4298]
[1719043741070,7.4283,134.62,134.53,18.5829]
[1719043741272,13.5806,134.63,134.58,7.4305]
[1719043741474,18.5736,134.6,134.5,21.2054]
[1719043741653,7.4303,134.59,134.53,7.4328]
[1719043741858,7.4297,134.6,134.55,7.4317]
[1719043742464,23.0138,134.59,134.54,7.4326]
[1719043742651,23.0138,134.59,134.57,7.4309]
[1719043742652,15.5839,134.59,134.57,7.4309]
[1719043742854,15.5839,134.62,134.58,7.4301]
[1719043743185,15.5839,134.62,134.5,21.2054]
[1719043743384,15.5839,134.62,134.51,20.0]
[1719043743667,15.5839,134.62,134.58,7.4304]
[1719043744177,15.5839,134.62,134.57,7.4309]
[1719043744864,15.5839,134.62,134.52,18.5844]
[1719043745053,7.429,134.61,134.55,7.4318]
[1719043745469,18.5723,134.61,134.53,7.433]
[1719043745655,7.4303,134.59,134.53,7.433]
[1719043745858,7.4295,134.6,134.54,7.4326]
[1719043746378,7.4295,134.6,134.55,7.432]
[1719043746556,23.0127,134.62,134.5,58.3774]
[1719043746759,23.0127,134.62,134.57,7.4307]
[1719043747170,15.5839,134.62,134.57,7.4307]
[1719043747479,15.5839,134.62,134.56,7.4313]
[1719043747654,7.4294,134.6,134.55,7.432]
[1719043748148,7.429,134.61,134.55,7.432]
[1719043748355,7.429,134.61,134.56,7.4316]
[1719043748772,18.5723,134.61,134.52,7.4334]
[1719043748972,18.5723,134.61,134.51,0.34]
[1719043749161,7.4301,134.59,134.54,7.4324]
[1719043749362,7.4296,134.6,134.54,7.4324]
[1719043749783,7.43,134.59,134.53,7.4329]
[1719043749974,7.4306,134.58,134.53,7.4329]
[1719043751257,7.4301,134.59,134.54,7.4327]
[1719043751981,7.4306,134.58,134.53,7.433]
[1719043752175,6.1527,134.63,134.49,0.8828329]
[1719043752176,22.577,134.57,134.49,0.8828329]
[1719043752480,22.577,134.57,134.5,7.4346]
[1719043752779,7.4318,134.56,134.51,7.4343]
[1719043753474,22.577,134.57,134.49,0.8828329]
[1719043753656,7.4324,134.55,134.49,8.3179329]
[1719043754258,7.434,134.52,134.49,0.8828329]
[1719043754678,23.7578,134.52,134.49,0.8828329]
[1719043755263,13.688,134.51,134.49,0.8828329]
[1719043755467,6.2532,134.51,134.49,0.8828329]
[1719043755673,7.4349,134.5,134.49,0.8828329]
[1719043756077,6.2532,134.51,134.4,18.5999]
[1719043756279,20.0,134.5,134.35,296.9963329]
[1719043756574,6.2532,134.51,134.39,15.7653]
[1719043756875,6.613,134.54,134.4,106.6389]
[1719043757056,6.613,134.54,134.4,6.6389]
[1719043757457,6.613,134.54,134.46,18.5925]
[1719043757654,6.613,134.54,134.48,18.5897]
[1719043757870,6.613,134.54,134.41,19.54]
[1719043758072,7.4333,134.53,134.48,7.4358]
[1719043758378,7.4333,134.53,134.48,7.436]
[1719043758568,14.0459,134.54,134.48,7.436]
[1719043759362,7.4335,134.53,134.48,7.436]
[1719043759572,14.0458,134.54,134.49,7.4354]
[1719043759772,6.613,134.54,134.5,7.4349]
[1719043759976,6.613,134.54,134.48,7.4359]
[1719043760185,6.613,134.54,134.42,0.17]
[1719043760365,6.613,134.54,134.44,37.1899]
[1719043760560,6.613,134.54,134.51,7.4339]
[1719043761059,16.6024,134.56,134.52,7.4338]
[1719043761460,16.6024,134.56,134.53,7.4331]
[1719043761672,16.6024,134.56,134.51,7.4341]
[1719043762182,16.6024,134.56,134.52,7.4337]
[1719043762359,16.6024,134.56,134.47,18.5913]
[1719043762556,24.0342,134.56,134.47,18.5913]
[1719043762760,7.4329,134.54,134.47,18.5913]
[1719043762969,16.6024,134.56,134.48,7.4355]
[1719043763266,7.4338,134.52,134.47,7.4363]
[1719043763465,7.4338,134.52,134.44,18.5943]
[1719043763669,7.4339,134.52,134.47,7.4362]
[1719043763872,35.1827,134.56,134.45,18.593]
[1719043764072,7.4324,134.55,134.49,7.4351]
[1719043764273,7.4324,134.55,134.42,19.54]
[1719043764274,24.0345,134.56,134.5,7.4344]